[Event "Early-Titled-Tuesday-Blitz-February-13-2024"]
[Site "Chess.com"]
[Date "2024.02.13"]
[Round "3"]
[White "JiiHart"]
[Black "BallottiLuca"]
[Result "1/2-1/2"]
[WhiteElo "2143"]
[BlackElo "2358"]
[TimeControl "180+1"]
[EndTime "8:32:09 PST"]
[Termination "Game drawn by repetition"]

1. e4 {[%clk 0:03:00.9]} 1... c5 {[%clk 0:02:59.5]} 2. c3 {[%clk 0:03:01]} 2...
d5 {[%clk 0:02:58.1]} 3. exd5 {[%clk 0:03:00.9]} 3... Qxd5 {[%clk 0:02:59]} 4.
d4 {[%clk 0:03:01.1]} 4... Nf6 {[%clk 0:02:56.7]} 5. Nf3 {[%clk 0:03:00.6]} 5...
Bg4 {[%clk 0:02:55.7]} 6. Be2 {[%clk 0:02:48.4]} 6... e6 {[%clk 0:02:55.8]} 7.
Na3 {[%clk 0:02:47.3]} 7... Nc6 {[%clk 0:02:51.5]} 8. Be3 {[%clk 0:02:38.8]}
8... cxd4 {[%clk 0:02:47.9]} 9. Nb5 {[%clk 0:02:37.5]} 9... Rc8 {[%clk
0:02:41.5]} 10. Nbxd4 {[%clk 0:02:36.2]} 10... Nxd4 {[%clk 0:02:37.8]} 11. Nxd4
{[%clk 0:02:34.9]} 11... Bxe2 {[%clk 0:02:35.1]} 12. Qxe2 {[%clk 0:02:31.9]}
12... Be7 {[%clk 0:02:14.9]} 13. O-O {[%clk 0:02:29]} 13... O-O {[%clk
0:02:14.7]} 14. Rfd1 {[%clk 0:02:28.4]} 14... Qa5 {[%clk 0:02:00.4]} 15. Qb5
{[%clk 0:02:05.2]} 15... Qc7 {[%clk 0:01:50.9]} 16. h3 {[%clk 0:01:44.1]} 16...
a6 {[%clk 0:01:50.8]} 17. Qe2 {[%clk 0:01:36]} 17... Nd5 {[%clk 0:01:51]} 18. a4
{[%clk 0:01:30.7]} 18... Nxe3 {[%clk 0:01:50.9]} 19. Qxe3 {[%clk 0:01:30.7]}
19... Bf6 {[%clk 0:01:51.4]} 20. Nf3 {[%clk 0:01:19.6]} 20... g6 {[%clk
0:01:50]} 21. Rd2 {[%clk 0:01:03.7]} 21... Rfd8 {[%clk 0:01:49.8]} 22. Rad1
{[%clk 0:01:03.3]} 22... Kg7 {[%clk 0:01:42.5]} 23. Rxd8 {[%clk 0:01:02.5]}
23... Rxd8 {[%clk 0:01:43.4]} 24. Rxd8 {[%clk 0:01:02]} 24... Qxd8 {[%clk
0:01:44.3]} 25. Qe4 {[%clk 0:00:56.2]} 25... Qb6 {[%clk 0:01:31.2]} 26. Qc2
{[%clk 0:00:42]} 26... h5 {[%clk 0:01:21.8]} 27. g3 {[%clk 0:00:41.5]} 27... Qc5
{[%clk 0:01:18.1]} 28. Nd2 {[%clk 0:00:39.8]} 28... h4 {[%clk 0:01:01]} 29. Ne4
{[%clk 0:00:39.6]} 29... Qe5 {[%clk 0:00:52.7]} 30. Nxf6 {[%clk 0:00:39.2]}
30... hxg3 {[%clk 0:00:36.3]} 31. Ng4 {[%clk 0:00:35.4]} 31... gxf2+ {[%clk
0:00:25.9]} 32. Kxf2 {[%clk 0:00:33]} 32... Qf4+ {[%clk 0:00:24.6]} 33. Kg2
{[%clk 0:00:32.1]} 33... e5 {[%clk 0:00:22]} 34. Qf2 {[%clk 0:00:31.6]} 34...
Qg5 {[%clk 0:00:20.3]} 35. Qf3 {[%clk 0:00:28.8]} 35... b5 {[%clk 0:00:14.4]}
36. Kh2 {[%clk 0:00:28.4]} 36... bxa4 {[%clk 0:00:13.5]} 37. Qe4 {[%clk
0:00:25.7]} 37... Qd2+ {[%clk 0:00:13.3]} 38. Kg3 {[%clk 0:00:25]} 38... f6
{[%clk 0:00:09.8]} 39. Qb7+ {[%clk 0:00:23.2]} 39... Kf8 {[%clk 0:00:09.8]} 40.
Qxa6 {[%clk 0:00:22.3]} 40... Qf4+ {[%clk 0:00:09.1]} 41. Kg2 {[%clk 0:00:21.8]}
41... Qe4+ {[%clk 0:00:08.6]} 42. Kg3 {[%clk 0:00:22.1]} 42... Qf4+ {[%clk
0:00:08.5]} 43. Kg2 {[%clk 0:00:22.4]} 43... Qe4+ {[%clk 0:00:09]} 44. Kg3
{[%clk 0:00:22.9]} 44... Qf4+ {[%clk 0:00:08.8]} 1/2-1/2

[Event "Early-Titled-Tuesday-Blitz-February-13-2024"]
[Site "Chess.com"]
[Date "2024.02.13"]
[Round "3"]
[White "Vaibhavraut99"]
[Black "RantomOpening"]
[Result "1-0"]
[WhiteElo "2672"]
[BlackElo "2483"]
[TimeControl "180+1"]
[EndTime "8:32:10 PST"]
[Termination "Vaibhavraut99 won by checkmate"]

1. d4 {[%clk 0:02:55.5]} 1... d5 {[%clk 0:02:58.6]} 2. Nf3 {[%clk 0:02:55.2]}
2... e6 {[%clk 0:02:58.7]} 3. g3 {[%clk 0:02:54.8]} 3... c5 {[%clk 0:02:58.8]}
4. c4 {[%clk 0:02:50.1]} 4... cxd4 {[%clk 0:02:59.7]} 5. cxd5 {[%clk 0:02:50.4]}
5... Qa5+ {[%clk 0:02:45.1]} 6. Bd2 {[%clk 0:02:35.4]} 6... Qxd5 {[%clk
0:02:44.5]} 7. Bg2 {[%clk 0:02:36]} 7... Nf6 {[%clk 0:02:43]} 8. O-O {[%clk
0:02:36.3]} 8... e5 {[%clk 0:02:36.6]} 9. Na3 {[%clk 0:02:24.7]} 9... Bxa3
{[%clk 0:02:35.7]} 10. Qa4+ {[%clk 0:02:23.5]} 10... Nc6 {[%clk 0:02:33.7]} 11.
Qxa3 {[%clk 0:02:23.6]} 11... Ne4 {[%clk 0:02:26.2]} 12. Rfd1 {[%clk 0:02:12.7]}
12... Qc5 {[%clk 0:02:10.4]} 13. b4 {[%clk 0:01:50.5]} 13... Qe7 {[%clk
0:02:07.7]} 14. Qb2 {[%clk 0:01:28.7]} 14... Nxd2 {[%clk 0:02:06.6]} 15. Nxd2
{[%clk 0:01:27.9]} 15... O-O {[%clk 0:02:03.7]} 16. b5 {[%clk 0:01:17.4]} 16...
Nd8 {[%clk 0:01:55.1]} 17. Rac1 {[%clk 0:01:08]} 17... Bg4 {[%clk 0:01:52.5]}
18. Nb3 {[%clk 0:01:03.7]} 18... Ne6 {[%clk 0:01:51.3]} 19. h3 {[%clk
0:01:03.2]} 19... Bh5 {[%clk 0:01:50.4]} 20. Na5 {[%clk 0:01:02.4]} 20... e4
{[%clk 0:01:39.7]} 21. Bxe4 {[%clk 0:00:56.3]} 21... Nf4 {[%clk 0:01:38.5]} 22.
Bxh7+ {[%clk 0:00:34.9]} 22... Kxh7 {[%clk 0:01:37.8]} 23. gxf4 {[%clk
0:00:35.8]} 23... Rad8 {[%clk 0:01:02.9]} 24. Rxd4 {[%clk 0:00:24.1]} 24... Rxd4
{[%clk 0:01:02.8]} 25. Qxd4 {[%clk 0:00:24.9]} 25... Rd8 {[%clk 0:01:03.2]} 26.
Qe3 {[%clk 0:00:19.9]} 26... Qf6 {[%clk 0:00:56.4]} 27. Nxb7 {[%clk 0:00:15.1]}
27... Rd7 {[%clk 0:00:53.9]} 28. Nc5 {[%clk 0:00:14.4]} 28... Re7 {[%clk
0:00:53.9]} 29. Qd3+ {[%clk 0:00:11.6]} 29... Bg6 {[%clk 0:00:54.2]} 30. Qf3
{[%clk 0:00:09.7]} 30... Qb2 {[%clk 0:00:48.9]} 31. Re1 {[%clk 0:00:05.2]} 31...
Qb4 {[%clk 0:00:46.6]} 32. Rc1 {[%clk 0:00:04.3]} 32... Rc7 {[%clk 0:00:43.7]}
33. f5 {[%clk 0:00:02.1]} 33... Rxc5 {[%clk 0:00:29.8]} 34. fxg6+ {[%clk
0:00:02.5]} 34... Kxg6 {[%clk 0:00:30.7]} 35. Rxc5 {[%clk 0:00:03.1]} 35... Qxc5
{[%clk 0:00:31.6]} 36. Qc6+ {[%clk 0:00:02.4]} 36... Qd6 {[%clk 0:00:30.6]} 37.
Qxd6+ {[%clk 0:00:02.5]} 37... f6 {[%clk 0:00:31.1]} 38. e3 {[%clk 0:00:02.1]}
38... Kf5 {[%clk 0:00:31.9]} 39. f4 {[%clk 0:00:03]} 39... g5 {[%clk 0:00:32.1]}
40. b6 {[%clk 0:00:03.9]} 40... gxf4 {[%clk 0:00:33]} 41. b7 {[%clk 0:00:04.8]}
41... f3 {[%clk 0:00:33.7]} 42. b8=Q {[%clk 0:00:05.3]} 42... Ke4 {[%clk
0:00:34.6]} 43. Kf2 {[%clk 0:00:06.2]} 43... a5 {[%clk 0:00:34.7]} 44. Qe8+
{[%clk 0:00:06.6]} 44... Kf5 {[%clk 0:00:34.9]} 45. Qh5+ {[%clk 0:00:07.5]}
45... Ke4 {[%clk 0:00:35.7]} 46. Qd4# {[%clk 0:00:07.7]} 1-0

[Event "Early-Titled-Tuesday-Blitz-February-13-2024"]
[Site "Chess.com"]
[Date "2024.02.13"]
[Round "3"]
[White "bolwin"]
[Black "Leebit02"]
[Result "0-1"]
[WhiteElo "2268"]
[BlackElo "2559"]
[TimeControl "180+1"]
[EndTime "8:32:10 PST"]
[Termination "Leebit02 won on time"]

1. Nf3 {[%clk 0:03:00.9]} 1... d5 {[%clk 0:02:57.2]} 2. c4 {[%clk 0:03:01.8]}
2... dxc4 {[%clk 0:02:54]} 3. e3 {[%clk 0:03:01.5]} 3... b5 {[%clk 0:02:45.8]}
4. a4 {[%clk 0:03:00.4]} 4... c6 {[%clk 0:02:46.3]} 5. axb5 {[%clk 0:02:59.2]}
5... cxb5 {[%clk 0:02:46.6]} 6. b3 {[%clk 0:02:59.5]} 6... a5 {[%clk 0:02:38.9]}
7. bxc4 {[%clk 0:02:58.4]} 7... b4 {[%clk 0:02:38.6]} 8. d4 {[%clk 0:02:46.9]}
8... Bb7 {[%clk 0:02:35.7]} 9. Bd3 {[%clk 0:02:46.3]} 9... Nf6 {[%clk
0:02:35.1]} 10. O-O {[%clk 0:02:46]} 10... e6 {[%clk 0:02:35.4]} 11. Qc2 {[%clk
0:02:37.8]} 11... Be7 {[%clk 0:02:33.9]} 12. e4 {[%clk 0:02:30.6]} 12... Nc6
{[%clk 0:01:58]} 13. d5 {[%clk 0:02:15.5]} 13... exd5 {[%clk 0:01:31.7]} 14.
exd5 {[%clk 0:02:12.4]} 14... Nb8 {[%clk 0:01:30]} 15. Re1 {[%clk 0:01:48.1]}
15... O-O {[%clk 0:01:28.7]} 16. Bb2 {[%clk 0:01:47.6]} 16... Na6 {[%clk
0:01:20.6]} 17. Nbd2 {[%clk 0:01:37.2]} 17... Nc5 {[%clk 0:01:16.3]} 18. Bxf6
{[%clk 0:00:41.9]} 18... Bxf6 {[%clk 0:01:16]} 19. Bxh7+ {[%clk 0:00:42.8]}
19... Kh8 {[%clk 0:01:16.5]} 20. Rad1 {[%clk 0:00:40.5]} 20... Bc8 {[%clk
0:00:57.5]} 21. Bf5 {[%clk 0:00:38.6]} 21... b3 {[%clk 0:00:51.2]} 22. Qb1
{[%clk 0:00:32.4]} 22... a4 {[%clk 0:00:51.5]} 23. Nf1 {[%clk 0:00:19.9]} 23...
a3 {[%clk 0:00:46.9]} 24. Ne5 {[%clk 0:00:18.8]} 24... a2 {[%clk 0:00:40.3]} 25.
Qb2 {[%clk 0:00:18.6]} 25... Bxf5 {[%clk 0:00:37.7]} 26. Qd4 {[%clk 0:00:14.9]}
26... Nd7 {[%clk 0:00:30]} 27. Qf4 {[%clk 0:00:07.2]} 27... Bh7 {[%clk
0:00:27.5]} 28. Nc6 {[%clk 0:00:05.8]} 28... Qb6 {[%clk 0:00:22.9]} 29. Ng3
{[%clk 0:00:05.5]} 29... b2 {[%clk 0:00:19.4]} 30. Nh5 {[%clk 0:00:05.3]} 30...
b1=Q {[%clk 0:00:19.1]} 31. Nxf6 {[%clk 0:00:05.5]} 31... Nxf6 {[%clk
0:00:19.5]} 32. Ne7 {[%clk 0:00:02]} 32... Qxd1 {[%clk 0:00:19.1]} 33. Rxd1
{[%clk 0:00:02]} 33... a1=Q {[%clk 0:00:19.6]} 34. Rc1 {[%clk 0:00:01.6]} 34...
Qxc1+ {[%clk 0:00:18.6]} 0-1

[Event "Early-Titled-Tuesday-Blitz-February-13-2024"]
[Site "Chess.com"]
[Date "2024.02.13"]
[Round "3"]
[White "CSB7"]
[Black "jcibarra"]
[Result "1-0"]
[WhiteElo "2752"]
[BlackElo "2960"]
[TimeControl "180+1"]
[EndTime "8:32:11 PST"]
[Termination "CSB7 won by checkmate"]

1. e4 {[%clk 0:03:00.9]} 1... Nc6 {[%clk 0:02:57.1]} 2. Nf3 {[%clk 0:02:56.1]}
2... d6 {[%clk 0:02:57.3]} 3. d4 {[%clk 0:02:55.4]} 3... Nf6 {[%clk 0:02:57.1]}
4. Nc3 {[%clk 0:02:55.6]} 4... g6 {[%clk 0:02:57.4]} 5. Be3 {[%clk 0:02:56.2]}
5... Bg7 {[%clk 0:02:49.7]} 6. Qd2 {[%clk 0:02:56.6]} 6... Ng4 {[%clk
0:02:50.1]} 7. Bg5 {[%clk 0:02:52.5]} 7... h6 {[%clk 0:02:50]} 8. Bh4 {[%clk
0:02:52.6]} 8... a6 {[%clk 0:02:50.5]} 9. O-O-O {[%clk 0:02:15.1]} 9... b5
{[%clk 0:02:48.6]} 10. h3 {[%clk 0:02:06.6]} 10... Nf6 {[%clk 0:02:48.6]} 11. e5
{[%clk 0:02:06.8]} 11... Nd7 {[%clk 0:02:19.4]} 12. Bd3 {[%clk 0:00:58.5]} 12...
Nb6 {[%clk 0:02:05.9]} 13. Rhe1 {[%clk 0:00:49.6]} 13... d5 {[%clk 0:01:53.7]}
14. e6 {[%clk 0:00:30.1]} 14... Bxe6 {[%clk 0:01:53.7]} 15. Bxg6 {[%clk
0:00:30]} 15... Nc4 {[%clk 0:01:42.8]} 16. Qd3 {[%clk 0:00:29.5]} 16... Qd6
{[%clk 0:01:39.7]} 17. Nd2 {[%clk 0:00:12]} 17... Nxd4 {[%clk 0:01:10]} 18. Bg3
{[%clk 0:00:05.8]} 18... Qc5 {[%clk 0:00:53.7]} 19. Nxc4 {[%clk 0:00:04.4]}
19... bxc4 {[%clk 0:00:51.7]} 20. Qe3 {[%clk 0:00:04.9]} 20... O-O {[%clk
0:00:35.3]} 21. Bh5 {[%clk 0:00:03.4]} 21... Rab8 {[%clk 0:00:32.1]} 22. Be5
{[%clk 0:00:03.9]} 22... Bxe5 {[%clk 0:00:17]} 23. Qxe5 {[%clk 0:00:03.7]} 23...
Nc6 {[%clk 0:00:13.6]} 24. Qg3+ {[%clk 0:00:04.1]} 24... Kh8 {[%clk 0:00:14.2]}
25. Qf4 {[%clk 0:00:04.5]} 25... Kg7 {[%clk 0:00:11.4]} 26. Qg3+ {[%clk
0:00:04.5]} 26... Kh7 {[%clk 0:00:11.6]} 27. Bf3 {[%clk 0:00:05]} 27... d4
{[%clk 0:00:07]} 28. Be4+ {[%clk 0:00:04.8]} 28... f5 {[%clk 0:00:06.8]} 29.
Bxc6 {[%clk 0:00:04.3]} 29... dxc3 {[%clk 0:00:06]} 30. Rxe6 {[%clk 0:00:04.1]}
30... Rg8 {[%clk 0:00:06.6]} 31. Qe3 {[%clk 0:00:03.6]} 31... Rxb2 {[%clk
0:00:02.3]} 32. Qxc5 {[%clk 0:00:03.1]} 32... Rgb8 {[%clk 0:00:02.8]} 33. Bb5
{[%clk 0:00:03.7]} 33... R8xb5 {[%clk 0:00:03]} 34. Rxe7+ {[%clk 0:00:04]} 34...
Kg6 {[%clk 0:00:02.6]} 35. Qc6+ {[%clk 0:00:04.3]} 35... Kh5 {[%clk 0:00:03.1]}
36. g4+ {[%clk 0:00:04.6]} 36... Kh4 {[%clk 0:00:03.3]} 37. Qxh6# {[%clk
0:00:04.6]} 1-0

[Event "Early-Titled-Tuesday-Blitz-February-13-2024"]
[Site "Chess.com"]
[Date "2024.02.13"]
[Round "3"]
[White "Teidi96"]
[Black "azikom"]
[Result "0-1"]
[WhiteElo "2297"]
[BlackElo "2728"]
[TimeControl "180+1"]
[EndTime "8:32:12 PST"]
[Termination "azikom won on time"]

1. e4 {[%clk 0:03:00.9]} 1... c5 {[%clk 0:03:00.4]} 2. Nf3 {[%clk 0:03:00.9]}
2... e6 {[%clk 0:03:00.9]} 3. c3 {[%clk 0:03:01.3]} 3... d5 {[%clk 0:03:00.7]}
4. exd5 {[%clk 0:03:02]} 4... Qxd5 {[%clk 0:03:00.9]} 5. d4 {[%clk 0:03:02.7]}
5... Nf6 {[%clk 0:03:00.5]} 6. Be3 {[%clk 0:03:02.1]} 6... Nbd7 {[%clk
0:02:59.1]} 7. Be2 {[%clk 0:02:58.3]} 7... cxd4 {[%clk 0:02:57.1]} 8. cxd4
{[%clk 0:02:58.1]} 8... Be7 {[%clk 0:02:53]} 9. Nc3 {[%clk 0:02:58.6]} 9... Qa5
{[%clk 0:02:53.3]} 10. O-O {[%clk 0:02:58.4]} 10... O-O {[%clk 0:02:52.6]} 11.
Bc4 {[%clk 0:02:56.9]} 11... Nb6 {[%clk 0:02:50.7]} 12. Bb3 {[%clk 0:02:56.9]}
12... Nbd5 {[%clk 0:02:50.9]} 13. Bg5 {[%clk 0:02:51.3]} 13... Nxc3 {[%clk
0:02:47.8]} 14. bxc3 {[%clk 0:02:50]} 14... h6 {[%clk 0:02:45.7]} 15. Bxf6
{[%clk 0:02:49.7]} 15... Bxf6 {[%clk 0:02:45.4]} 16. Rc1 {[%clk 0:02:50.1]}
16... Rd8 {[%clk 0:02:45.4]} 17. c4 {[%clk 0:02:43]} 17... Bd7 {[%clk
0:02:43.3]} 18. d5 {[%clk 0:02:42.7]} 18... exd5 {[%clk 0:02:39]} 19. cxd5
{[%clk 0:02:42.8]} 19... Bc6 {[%clk 0:02:37.2]} 20. dxc6 {[%clk 0:02:26.1]}
20... Rxd1 {[%clk 0:02:33.9]} 21. Rfxd1 {[%clk 0:02:27]} 21... bxc6 {[%clk
0:02:33.1]} 22. Rd7 {[%clk 0:02:26.8]} 22... Rf8 {[%clk 0:02:24.9]} 23. Rxc6
{[%clk 0:02:24.4]} 23... Bd8 {[%clk 0:02:15.5]} 24. Rc8 {[%clk 0:02:01.1]} 24...
Qf5 {[%clk 0:02:09.9]} 25. Rcxd8 {[%clk 0:01:50.2]} 25... Rxd8 {[%clk
0:02:04.7]} 26. Rxd8+ {[%clk 0:01:50.4]} 26... Kh7 {[%clk 0:02:04.8]} 27. h3
{[%clk 0:01:49.1]} 27... a5 {[%clk 0:02:00.5]} 28. Rd5 {[%clk 0:01:42.4]} 28...
Qb1+ {[%clk 0:01:55.5]} 29. Kh2 {[%clk 0:01:42.9]} 29... a4 {[%clk 0:01:55.9]}
30. Bc4 {[%clk 0:01:28.6]} 30... Qb2 {[%clk 0:01:52.6]} 31. Rd7 {[%clk
0:01:20.9]} 31... f5 {[%clk 0:01:47.4]} 32. Be6 {[%clk 0:01:05.5]} 32... Kg6
{[%clk 0:01:39.3]} 33. Kg3 {[%clk 0:00:49.4]} 33... Qb8+ {[%clk 0:01:35.8]} 34.
Kh4 {[%clk 0:00:39.2]} 34... Qf4+ {[%clk 0:01:18.3]} 35. g4 {[%clk 0:00:39]}
35... Qxf3 {[%clk 0:01:14.2]} 36. Bxf5+ {[%clk 0:00:38.1]} 36... Kf6 {[%clk
0:01:13.4]} 37. Rd6+ {[%clk 0:00:26.6]} 37... Ke7 {[%clk 0:01:09.2]} 38. Rd2
{[%clk 0:00:21.4]} 38... Qf4 {[%clk 0:01:02.6]} 39. Re2+ {[%clk 0:00:17.9]}
39... Kf6 {[%clk 0:00:55.5]} 40. Re6+ {[%clk 0:00:16.5]} 40... Kf7 {[%clk
0:00:54.3]} 41. Re2 {[%clk 0:00:15.3]} 41... g6 {[%clk 0:00:49.6]} 42. Be6+
{[%clk 0:00:12.8]} 42... Kg7 {[%clk 0:00:48.9]} 43. Bd7 {[%clk 0:00:02.6]} 43...
Qd6 {[%clk 0:00:44.9]} 44. Bxa4 {[%clk 0:00:01.2]} 44... g5+ {[%clk 0:00:35]}
0-1

[Event "Early-Titled-Tuesday-Blitz-February-13-2024"]
[Site "Chess.com"]
[Date "2024.02.13"]
[Round "3"]
[White "crazy_but_lazy"]
[Black "stasOR4ik"]
[Result "1-0"]
[WhiteElo "2611"]
[BlackElo "2415"]
[TimeControl "180+1"]
[EndTime "8:32:13 PST"]
[Termination "crazy_but_lazy won by resignation"]

1. d4 {[%clk 0:02:58.8]} 1... d5 {[%clk 0:02:59.1]} 2. c4 {[%clk 0:02:59]} 2...
c6 {[%clk 0:02:59.3]} 3. cxd5 {[%clk 0:02:53.6]} 3... cxd5 {[%clk 0:02:59.3]} 4.
Bf4 {[%clk 0:02:54.2]} 4... Nc6 {[%clk 0:02:59.2]} 5. e3 {[%clk 0:02:54.5]} 5...
a6 {[%clk 0:02:59.5]} 6. Nc3 {[%clk 0:02:54.1]} 6... Nf6 {[%clk 0:02:59.3]} 7.
Be2 {[%clk 0:02:52.9]} 7... Bf5 {[%clk 0:02:59.3]} 8. Nf3 {[%clk 0:02:49.3]}
8... e6 {[%clk 0:02:59.3]} 9. Qb3 {[%clk 0:02:49.5]} 9... Qd7 {[%clk 0:02:57.8]}
10. O-O {[%clk 0:02:45.7]} 10... Be7 {[%clk 0:02:54]} 11. Na4 {[%clk 0:02:30.1]}
11... Na5 {[%clk 0:02:39.1]} 12. Qd1 {[%clk 0:02:26.7]} 12... Rd8 {[%clk
0:02:12.1]} 13. Ne5 {[%clk 0:02:03.6]} 13... Qc8 {[%clk 0:01:53.5]} 14. Rc1
{[%clk 0:01:58.7]} 14... Qa8 {[%clk 0:01:53.6]} 15. Nb6 {[%clk 0:01:58.3]} 15...
Qa7 {[%clk 0:01:53.2]} 16. Qa4+ {[%clk 0:01:58.7]} 16... Nc6 {[%clk 0:01:42.8]}
17. Nxc6 {[%clk 0:01:34.2]} 17... bxc6 {[%clk 0:01:42.3]} 18. Rxc6 {[%clk
0:01:16.4]} 18... O-O {[%clk 0:01:33]} 19. Qxa6 {[%clk 0:01:16.7]} 19... Qxa6
{[%clk 0:00:54.9]} 20. Bxa6 {[%clk 0:01:17.6]} 20... Ne8 {[%clk 0:00:40.5]} 21.
Nc8 {[%clk 0:00:50]} 21... Bf6 {[%clk 0:00:30]} 22. Rfc1 {[%clk 0:00:44]} 22...
g5 {[%clk 0:00:25.3]} 23. Bg3 {[%clk 0:00:44.3]} 23... h5 {[%clk 0:00:20.4]} 24.
h3 {[%clk 0:00:44.6]} 24... h4 {[%clk 0:00:19.3]} 25. Bh2 {[%clk 0:00:45.1]}
25... g4 {[%clk 0:00:19.6]} 26. hxg4 {[%clk 0:00:42.6]} 26... Bxg4 {[%clk
0:00:20.5]} 27. Bf4 {[%clk 0:00:42.8]} 27... Kh7 {[%clk 0:00:19.7]} 28. b4
{[%clk 0:00:43]} 28... Rg8 {[%clk 0:00:19.8]} 29. Kf1 {[%clk 0:00:42.4]} 29...
h3 {[%clk 0:00:19.6]} 30. gxh3 {[%clk 0:00:40.9]} 30... Bxh3+ {[%clk 0:00:20]}
31. Ke2 {[%clk 0:00:41.7]} 31... Bg4+ {[%clk 0:00:18.9]} 32. Kd2 {[%clk
0:00:41]} 32... Bf3 {[%clk 0:00:18.7]} 33. b5 {[%clk 0:00:39.6]} 33... Rg2
{[%clk 0:00:17.5]} 34. Bg3 {[%clk 0:00:38.7]} 34... e5 {[%clk 0:00:10.5]} 35. b6
{[%clk 0:00:30.8]} 35... exd4 {[%clk 0:00:09]} 36. b7 {[%clk 0:00:31.5]} 36...
dxe3+ {[%clk 0:00:08.8]} 37. Kxe3 {[%clk 0:00:32.4]} 37... Be4 {[%clk
0:00:06.9]} 38. b8=Q {[%clk 0:00:29.5]} 38... Bg5+ {[%clk 0:00:05.7]} 39. Bf4
{[%clk 0:00:30.1]} 39... d4+ {[%clk 0:00:05.1]} 40. Kxe4 {[%clk 0:00:27.6]}
40... Nf6+ {[%clk 0:00:05.6]} 41. Rxf6 {[%clk 0:00:27.7]} 41... Bxf6 {[%clk
0:00:04.9]} 42. Rh1+ {[%clk 0:00:27.1]} 42... Kg6 {[%clk 0:00:04.8]} 43. Kf3
{[%clk 0:00:21]} 43... d3 {[%clk 0:00:02.6]} 44. Kxg2 {[%clk 0:00:19.6]} 1-0

[Event "Early-Titled-Tuesday-Blitz-February-13-2024"]
[Site "Chess.com"]
[Date "2024.02.13"]
[Round "3"]
[White "killer_dreams"]
[Black "traviscottofficial"]
[Result "0-1"]
[WhiteElo "2474"]
[BlackElo "2663"]
[TimeControl "180+1"]
[EndTime "8:32:14 PST"]
[Termination "traviscottofficial won by checkmate"]

1. d4 {[%clk 0:03:00.9]} 1... Nf6 {[%clk 0:02:59.4]} 2. Nf3 {[%clk 0:03:00.8]}
2... g6 {[%clk 0:02:59.6]} 3. e3 {[%clk 0:02:59.3]} 3... Bg7 {[%clk 0:02:59.7]}
4. Be2 {[%clk 0:03:00]} 4... O-O {[%clk 0:03:00]} 5. O-O {[%clk 0:03:00.7]} 5...
c5 {[%clk 0:02:59.8]} 6. dxc5 {[%clk 0:02:56.7]} 6... Qc7 {[%clk 0:02:58.3]} 7.
a3 {[%clk 0:02:52.7]} 7... a5 {[%clk 0:02:57.1]} 8. c4 {[%clk 0:02:33.8]} 8...
Qxc5 {[%clk 0:02:56.1]} 9. Nc3 {[%clk 0:02:22.3]} 9... d6 {[%clk 0:02:54.8]} 10.
b4 {[%clk 0:02:14.5]} 10... Qc7 {[%clk 0:02:48.5]} 11. Bb2 {[%clk 0:02:13.7]}
11... Be6 {[%clk 0:02:44]} 12. Rc1 {[%clk 0:02:06.2]} 12... axb4 {[%clk
0:02:41.3]} 13. axb4 {[%clk 0:02:05.7]} 13... Qb6 {[%clk 0:02:36.2]} 14. Nb5
{[%clk 0:01:53.6]} 14... Nc6 {[%clk 0:02:28.3]} 15. c5 {[%clk 0:01:53.9]} 15...
dxc5 {[%clk 0:02:24.7]} 16. bxc5 {[%clk 0:01:54.8]} 16... Qd8 {[%clk 0:02:00.4]}
17. Nfd4 {[%clk 0:01:44.9]} 17... Bd5 {[%clk 0:01:42.8]} 18. Nc3 {[%clk
0:01:36.8]} 18... Nxd4 {[%clk 0:01:40.4]} 19. exd4 {[%clk 0:01:28]} 19... Bc6
{[%clk 0:01:38.6]} 20. Bc4 {[%clk 0:01:19.8]} 20... e6 {[%clk 0:01:35.5]} 21.
Qb3 {[%clk 0:01:04.6]} 21... Re8 {[%clk 0:01:07.2]} 22. Rfd1 {[%clk 0:01:02.1]}
22... Ng4 {[%clk 0:00:56.3]} 23. h3 {[%clk 0:00:53.4]} 23... Nxf2 {[%clk
0:00:50.1]} 24. Kxf2 {[%clk 0:00:37.7]} 24... Qh4+ {[%clk 0:00:38.4]} 25. Kg1
{[%clk 0:00:19.3]} 25... Bxd4+ {[%clk 0:00:38.1]} 26. Rxd4 {[%clk 0:00:17.5]}
26... Qxd4+ {[%clk 0:00:39]} 27. Kh1 {[%clk 0:00:15.9]} 27... Qxc5 {[%clk
0:00:25.7]} 28. Nb5 {[%clk 0:00:12.9]} 28... Qg5 {[%clk 0:00:16.2]} 29. Bf1
{[%clk 0:00:08.9]} 29... Rad8 {[%clk 0:00:13.3]} 30. Qc3 {[%clk 0:00:05.1]}
30... e5 {[%clk 0:00:12.7]} 31. Na3 {[%clk 0:00:03]} 31... Rd2 {[%clk
0:00:12.9]} 32. Rc2 {[%clk 0:00:01.5]} 32... Bxg2+ {[%clk 0:00:11.7]} 33. Kh2
{[%clk 0:00:01.9]} 33... Rxc2 {[%clk 0:00:10.2]} 34. Nxc2 {[%clk 0:00:02.3]}
34... Bxf1 {[%clk 0:00:10.7]} 35. Qc7 {[%clk 0:00:01.4]} 35... Qg2# {[%clk
0:00:09.6]} 0-1